Cogmind - Beta 13 @@@ ROGUE MODE // 2024.04.19 @ 11:51:08 Player: Barbarossa Result: Self-destructed Performance ------------- Evolutions (2) 1000 Regions Visited (3) 600 Robots Destroyed (28) 140 Value Destroyed (556) 556 Prototype IDs (1) 20 Alien Tech Used (0) 0 Bonus (0) 0 TOTAL SCORE: 2316 Bonus ------- None Cogmind --------- Core Integrity 516/550 Matter 163/300 Energy 0/100 System Corruption 0% Temperature Cool (20) Movement Flying (37) Location -8/Materials Parts ------- > --- POWER (2) -------- (None) > --- PROPULSION (3) --- Flight Unit Flight Unit > --- UTILITY (4) ------ Cooling System > --- WEAPON (2) ------- Spread Laser > --- INVENTORY (5) ---- Compact Wheel Compact Wheel Compact Wheel Heat Sink Spread Laser Peak State ------------ > --- POWER ------------ Light Ion Engine > --- PROPULSION ------- Flight Unit Flight Unit Flight Unit > --- UTILITY ---------- Heat Sink Heat Sink Heat Sink Particle Charger > --- WEAPON ----------- Spread Laser Spread Laser > --- INVENTORY -------- Light Ion Engine Compact Wheel Compact Wheel Compact Wheel Spread Laser [Rating: 14] Favorites ----------- Power Light Ion Engine Engine Light Ion Engine Propulsion Compact Wheel Leg Aluminum Leg Wheel Compact Wheel Flight Unit Flight Unit Utility Heat Sink Device Heat Sink Storage Medium Storage Unit Weapon Spread Laser Energy Gun Spread Laser Ballistic Gun Light Assault Rifle Build | -11 -10 -9 -8 ------- Run | Yrd Mat Mat Mat Slots Evolved 4 | . . 2 2 Power 1 | . . . 1 Propulsion 1 | . . 1 . Utility 2 | . . 1 1 Weapon . | . . . . Parts Attached 29 | . 11 14 4 Power 3 | . 1 1 1 Engine 3 | . 1 1 1 Core . | . . . . Reactor . | . . . . Propulsion 12 | . 5 7 . Treads . | . . . . Leg . | . . . . Wheel 7 | . 5 2 . Hover . | . . . . Flight 5 | . . 5 . Utility 7 | . 2 2 3 Device 6 | . 1 2 3 Storage 1 | . 1 . . Processor . | . . . . Hackware . | . . . . Protection . | . . . . Artifact . | . . . . Weapon 7 | . 3 4 . Energy Gun 7 | . 3 4 . Energy Cannon . | . . . . Ballistic Gun . | . . . . Ballistic Cannon . | . . . . Launcher . | . . . . Special Weapon . | . . . . Impact Weapon . | . . . . Slashing Weapon . | . . . . Piercing Weapon . | . . . . Special Melee Weapon . | . . . . Unidentified Prototypes 1 | . . 1 . Parts Lost 8 | . 2 2 4 Power 1 | . . . 1 Propulsion 2 | . . 1 1 Utility 2 | . . 1 1 Weapon 3 | . 2 . 1 Highest Loss Streak 4 | . 1 1 4 To Critical Strikes . | . . . . Average Slot Usage (%) 82 | . 83 83 70 Engine 12 | . 14 11 8 Leg 1 | . 3 . . Wheel 19 | . 24 18 . Flight 7 | . . 13 25 Device 6 | . . 11 18 Storage 9 | . 14 6 . Energy Gun 17 | . 14 22 18 Ballistic Gun 5 | . 10 . . Naked Turns . | . . . . Heaviest Build 20 | 11 20 20 14 Greatest Support 48 | 20 32 48 12 Greatest Overweight (x) 4 | . . 4 1 Average Overweight (x) . | . . . . Largest Inventory Capacity 10 | . 10 10 5 Average Capacity 8 | . 8 8 5 Most Carried 8 | . 8 8 5 Average Carried 6 | . 7 5 4 Final Capacity 10 | 8 10 5 5 Final Carried 6 | 6 6 5 5 Class Distribution -------------------- 83% | Mutant 16% | Scavenger-Mutant Dominant Class ---------------- Mutant | -10/Materials Mutant | -9/Materials Scavenger-Mutant | -8/Materials Resources | -11 -10 -9 -8 ----------- Run | Yrd Mat Mat Mat Matter Collected 398 | 200 124 74 . Remotely . | . . . . Salvage Created 750 | . 503 247 . Parts 43 | . 27 16 . Haulers Intercepted 1 | . 1 . . Recyclers Shooed 5 | . 4 1 . Parts Field Recycled . | . . . . Retrieved Matter . | . . . . Parts Self-Destructed . | . . . . Prevented . | . . . . Kills | -11 -10 -9 -8 ------- Run | Yrd Mat Mat Mat Combat Hostiles Destroyed 23 | . 13 10 . Guns 23 | . 13 10 . Classes Destroyed 5 | . 5 . . Hauler 1 | . 1 . . Recycler 3 | . 2 1 . Watcher 1 | . 1 . . Swarmer 12 | . 6 6 . Grunt 11 | . 7 4 . Best Kill Streak 5 | . 4 5 . Combat Bots Only 3 | . 3 3 . Max Kills in Single Turn 1 | . 1 1 . Gunslinging . | . . . . Exploded . | . . . . Melee . | . . . . Uniques/NPCs Destroyed . | . . . . Combat | -11 -10 -9 -8 -------- Run | Yrd Mat Mat Mat Hostile Shots Fired 104 | . 41 41 22 Missed 40 | . 14 20 6 Damage Taken 956 | . 477 222 257 Core 261 | . 158 69 34 Absorbed by Shields . | . . . . Core Remaining (%) 72 | 100 36 82 . Volleys Fired 84 | . 54 23 7 Largest 2 | . 2 2 2 Hottest 130 | . 85 130 130 Shots Fired 151 | . 93 44 14 Gun 151 | . 93 44 14 Cannon . | . . . . Launcher . | . . . . Special . | . . . . Kinetic 41 | . 41 . . Thermal 110 | . 52 44 14 Explosive . | . . . . Electromagnetic . | . . . . Robot Hit Streak 10 | . 6 10 6 Robot Miss Streak 12 | . 7 6 12 Penetration Max . | . . . . Secondary Targets 2 | . 1 1 . Max Gunslinging Chain 1 | . 1 1 . Shots Hit Robots 114 | . 73 29 12 Core Hits 126 | . 71 43 12 Critical Kills . | . . . . Critical Parts Destroyed 1 | . 1 . . Critical Strikes 1 | . 1 . . Destroy 1 | . 1 . . Melee Attacks . | . . . . Impact . | . . . . Slashing . | . . . . Piercing . | . . . . Sneak Attacks . | . . . . Combat Hostiles . | . . . . Follow-up Attacks . | . . . . Damage Inflicted 1344 | . 774 404 166 Guns 1344 | . 774 404 166 Cannons . | . . . . Explosions . | . . . . Melee . | . . . . Ramming . | . . . . Kinetic 192 | . 192 . . Thermal 1152 | . 582 404 166 Explosive . | . . . . Electromagnetic . | . . . . Impact . | . . . . Slashing . | . . . . Piercing . | . . . . Highest Corruption 3 | . . 3 . Average Corruption 2 | . . 2 . Corruption Purged . | . . . . Corruption Blocked . | . . . . Effects 4 | . . 4 . Message Errors 1 | . . 1 . Matter Fused 2 | . . 2 . Data Loss (major) 1 | . . 1 . Overload Shots . | . . . . Overflow Damage . | . . . . Projectiles . | . . . . Explosions . | . . . . Melee . | . . . . Knockbacks . | . . . . Impact . | . . . . Kinetic . | . . . . Secondary . | . . . . Self-Inflicted Damage . | . . . . Shots . | . . . . Rammed . | . . . . Targets Rammed . | . . . . Kicked . | . . . . Crushed . | . . . . Highest Temperature 543 | . 273 543 9 Average Temperature 110 | . 80 182 6 Received Heat Transfer 306 | . 87 57 162 Effects 5 | . . 5 . Shutdowns 2 | . . 2 . Energy Bleed 1 | . . 1 . Matter Decay 1 | . . 1 . Short Circuit 1 | . . 1 . Siege Activations . | . . . . Robots Corrupted . | . . . . Combat Hostiles . | . . . . Parts Fried . | . . . . Impact Corruptions . | . . . . Robots Melted . | . . . . Combat Hostiles . | . . . . Parts Melted 2 | . 1 1 . Heat Transferred 1450 | . 715 525 210 Parts Sabotaged . | . . . . Parts Stolen . | . . . . Parts Stripped . | . . . . Power Chain Reactions . | . . . . Alert | -11 -10 -9 -8 ------- Run | Yrd Mat Mat Mat Peak Influence 339 | . 339 335 150 Initial 141 | . . 85 141 Average 166 | . 159 188 142 Maximum Alert Level 1 | . 1 1 . Low Security (%) 62 | . 58 54 100 Level 1 37 | . 41 45 . Level 2 . | . . . . Level 3 . | . . . . Level 4 . | . . . . Level 5 . | . . . . High Security . | . . . . Max Security . | . . . . Squads Dispatched 5 | . 2 . 3 Investigation 1 | . . . 1 Extermination . | . . . . Reinforcement 4 | . 2 . 2 Assault . | . . . . Garrison . | . . . . Intercept . | . . . . Searches Triggered . | . . . . Construction Impeded . | . . . . Haulers Reinforced . | . . . . Active Scanning Responses . | . . . . Cargo Convoy Interrupts . | . . . . Stealth | -11 -10 -9 -8 --------- Run | Yrd Mat Mat Mat Distress Signals 1 | . 1 . . Communications Jammed . | . . . . Distress Signals . | . . . . Times Spotted 46 | . 21 12 13 Peak Tracking Total 8 | . 5 4 8 Tactical Retreats 3 | . 1 1 1 Traps | -11 -10 -9 -8 ------- Run | Yrd Mat Mat Mat Traps Triggered 2 | . . 2 . Indirectly . | . . . . Trap Hack Attempts . | . . . . Triggered . | . . . . Disarmed . | . . . . Reprogrammed . | . . . . Reused . | . . . . Traps Extracted . | . . . . Installed . | . . . . Triggered . | . . . . Machines | -11 -10 -9 -8 ---------- Run | Yrd Mat Mat Mat Machines Disabled . | . . . . Max in Single Turn . | . . . . Machines Repaired . | . . . . Machines Dismantled . | . . . . Machines Sabotaged . | . . . . Overloaded Fab Kills . | . . . . Hacking | -11 -10 -9 -8 --------- Run | Yrd Mat Mat Mat Machines Accessed 4 | . . 2 2 Terminals 3 | . . 1 2 Fabricators . | . . . . Repair Stations . | . . . . Recycling Units . | . . . . Scanalyzers 1 | . . 1 . Garrison Access . | . . . . Total Hacks 8 | . . 4 4 Successful 5 | . . 3 2 Failed 3 | . . 1 2 Catastrophic 2 | . . . 2 Database Lockouts . | . . . . Manual 6 | . . 2 4 Terminals 6 | . . 2 4 Fabricators . | . . . . Repair Stations . | . . . . Recycling Units . | . . . . Scanalyzers 2 | . . 2 . Garrison Access . | . . . . Terminal Hacks . | . . . . Fabricator Hacks . | . . . . Repair Station Hacks . | . . . . Recycling Unit Hacks . | . . . . Scanalyzer 2 | . . 2 . Insert Component 1 | . . 1 . Analyze 1 | . . 1 . Garrison Access Hacks . | . . . . Unauthorized Hacks 3 | . . 1 2 Terminals 3 | . . 1 2 Botnet 3 | . . 1 2 Fabricators . | . . . . Repair Stations . | . . . . Recycling Units . | . . . . Scanalyzers . | . . . . Garrison Access . | . . . . Data Cores Recovered . | . . . . Used . | . . . . Hacking Detections 4 | . . 2 2 Full Trace Events 1 | . . . 1 Feedback Events . | . . . . Feedback Blocked . | . . . . Robot Schematics Acquired . | . . . . Robots Built . | . . . . Authchips . | . . . . Time . | . . . . Total Robot Build Rating . | . . . . Part Schematics Acquired 1 | . . 1 . Parts Built . | . . . . Authchips . | . . . . Time . | . . . . Total Part Build Rating . | . . . . Parts Repaired . | . . . . Time . | . . . . Parts Recycled . | . . . . Recycled Matter . | . . . . Retrieved Matter . | . . . . Retrieved Components . | . . . . Parts Scanalyzed 1 | . . 1 . Part Schematics Acquired 1 | . . 1 . Parts Damaged . | . . . . Bothacking | -11 -10 -9 -8 ------------ Run | Yrd Mat Mat Mat Used RIF Installer . | . . . . Robots Hacked . | . . . . Non-combat . | . . . . Combat . | . . . . Robot Hacks Applied . | . . . . Relay Couplers Released . | . . . . Fabnet Peak Effective % . | . . . . Robots Rewired . | . . . . Allies Hacked . | . . . . Hacks Repelled . | . . . . Allies | -11 -10 -9 -8 -------- Run | Yrd Mat Mat Mat Total Allies . | . . . . Largest Group . | . . . . Highest-Rated Group . | . . . . Highest-Rated Ally . | . . . . Total Orders . | . . . . Ally Attacks . | . . . . Total Damage . | . . . . Kills . | . . . . Allies Corrupted . | . . . . Allies Melted . | . . . . Intel | -11 -10 -9 -8 ------- Run | Yrd Mat Mat Mat Robot Analysis Total . | . . . . Derelict Logs Recovered . | . . . . Drone Launches . | . . . . Drone Recoveries . | . . . . Exploration | -11 -10 -9 -8 ------------- Run | Yrd Mat Mat Mat Turns Passed 903 | . 493 296 114 Spaces Moved 677 | 1 303 267 106 Core . | . . . . Treads . | . . . . Legs 46 | 1 45 . . Wheels 372 | . 258 114 . Hover . | . . . . Flight 259 | . . 153 106 Fastest Speed 34 | 120 90 34 34 Average Speed 83 | 120 100 67 73 Slowest Speed 370 | 120 120 370 117 Overloaded Moves . | . . . . Propulsion Burnouts . | . . . . Robots Hopped . | . . . . Cave-ins Triggered . | . . . . Exploration Rate (%) 27 | 2 66 29 12 Regions Visited 3 Branch Regions . Pre-discovered Areas . | . . . . Known Exits Taken . | . . . . Unknown Exits Taken 3 | 1 1 1 . Scrap Searched . | . . . . Spaces Dug . | . . . . Terrain Destroyed . | . . . . Melee . | . . . . Projectile . | . . . . AOE . | . . . . Terrain Rammed . | . . . . Walls Destroyed . | . . . . Machines Disabled . | . . . . Actions | -11 -10 -9 -8 --------- Run | Yrd Mat Mat Mat Total 872 | . 408 336 128 Wait 52 | . 25 21 6 Move 674 | . 302 266 106 Hop . | . . . . Pick Up 13 | . 7 5 1 Fast Attach 9 | . 2 4 3 Attach 6 | . 3 2 1 Detach . | . . . . Swap 14 | . 6 8 . Drop 20 | . 9 7 4 Fire 84 | . 54 23 7 Melee . | . . . . Ram . | . . . . Kick . | . . . . Crush . | . . . . Escape Stasis . | . . . . Rewire . | . . . . Trap . | . . . . Miscellaneous . | . . . . Route ------- -11/Scrapyard -10/Materials (discovered 4 exits: *Mat x3 / [*Min]) -9/Materials -8/Materials History --------- Turn | Location | Event 1 | -11/Scrapyard | Discovered new exit (range 0) 1 | -11/Scrapyard | Entered Materials 93 | -10/Materials | Discovered new exit (range 15) 275 | -10/Materials | Discovered new exit (range 6) 301 | -10/Materials | Build established: Mutant 327 | -10/Materials | Discovered new exit (range 9) 342 | -10/Materials | Core integrity fell below 50% 488 | -10/Materials | Discovered new exit (range 6) 494 | -10/Materials | Entered another Materials area 494 | -9/Materials | Evolved 2 slots: Propulsion x1, Utility x1 779 | -9/Materials | Discovered new exit (range 16) 790 | -9/Materials | Entered another Materials area 790 | -8/Materials | Evolved 2 slots: Power x1, Utility x1 904 | -8/Materials | Self-destructed Last Messages --------------- Terminal linked with 1 system. Awaiting botnet instructions. 00810_ ALERT: Suspicious activity at Terminal M003. Dispatching Investigation squad. 00811_ ALERT: Hostiles spotted, dispatching reinforcements to Terminal M004. 00817_ Acquired Heat Sink. 00819_ Acquired Particle Charger. 00821_ Dropped Heat Sink. 00823_ Dropped Lgt. Ion Engine. 00823_ Acquired Heat Sink. 00854_ Acquired Cooling System. 00855_ Dropped Heat Sink. 00860_ R-06 Scavenger collects Heat Sink. 00881_ Flight Unit destroyed. 00896_ Lgt. Ion Engine destroyed. 00897_ Particle Charger destroyed. 00897_ Critical hit (Burn: +37). 00900_ K-01 Serf collects debris. 00903_ Spread Laser destroyed. Map ----- +----------------------------------------------------+ | ?????????????????????????????????????????????????? | | ?????????????????????????????????????????????????? | | ?????????????????????????????????????????????????? | | ?????????????????????????????????????????????????? | | ?????????????????????????????????????????????????? | | ?????????????????????????????????????????????????? | | ?????????????????????????????????????????????????? | | ????????????????????????????########?????????????? | | ????????????????????????#???# #?????????????? | | ????????????????????????# # !!! !#?????????????? | | ????????????????????????# # !!! #?????????????? | | ????????????????????????# + !! #### #????????? | | ????????????????????????# # !+ #????????? | | ????????????????????????# # [ ######????????? | | ????????????????????????# ######+#?????????????? | | ????????????????????????#a #????# ########??????? | | ????????????????????????# #????# # #??????? | | ????????????????????????#g #????# # #??????? | | ????????????????????????# o#?#### # "" #??????? | | ????????????????????????# #?# + T" #??????? | | ????????????????????????# #?# # "" #??????? | | ????????????????????????# g #?# # #??????? | | ????????????????????????# #?# ###/####??????? | | ????????????????????????# #?# #?# #?????????? | | ?????????????????##+##### ### #/###/##????????? | | ?????????? k @ g # #????????? | | ?????????? o# """ #????????? | | ?????????? g# "T" #????????? | | ???????????###############+### gg g #????????? | | ???????????????????????? ???# # % #????????? | | ??????????????????????? ????# # #????????? | | ????????????????????? ?????# ########????????? | | ????????????????????? ??????# #???? #????????? | | ?????????????????????????????# #?? ""#????????? | | ?????????????????????????????# # T"#????????? | | ?????????????????????????????# + ! ""#????????? | | ?????????????????????????????# # #????????? | | ?????????????????????????????# #?? #????????? | | ??????????????????# ????????## ##???###????????? | | ????????????????? ####### ########???????? | | ????????????????? #???????? | | ?????????????????? T T #???????? | | ????????????????? #???????? | | ?????????????????? ####### ########???????? | | ???????????????????#?????######+#######??????????? | | ?????????????????????????# ! #??????????? | | ?????????????????????????# ! #??????????? | | ?????????????????????????# """"" #??????????? | | ?????????????????????????# """"" #??????????? | | ?????????????????????????# """"" #??????????? | +----------------------------------------------------+ Best States ------------- Heat Dissipation 61 Energy Generation 10 Energy Capacity 125 Matter Stores 300 Matter Capacity 300 Sight Range 16 Terrain Scan Density 10 Evasion (%) 63 Particle Charging 15 Item Schematics ----------------- Spread Laser | -9/Materials | Scanalyzed Robot Schematics ------------------ None Fabricated ------------ Nothing Alien Tech Used ----------------- None Achievements -------------- None Challenges ------------ None Game ------ Seed MachineGaussFragment Manual? 0 Play Time 00:10:50 Cumulative 108.8 hours Start 2024.04.19 @ 11:41:57 End 2024.04.19 @ 11:51:08 Sessions 1 Manual Loads 0 Difficulty Rogue Special Mode None Game No. 218 Rogue 218 Adventurer 0 Explorer 0 Win Type - Total 0 Types 0/0/0/0/0/0/0/0/0 Lore% 31 Gallery% 41 Achievement% 27 Wizard Run 0 Options --------- Layout 1 ASCII 0 Keyboard 0 Movement Mouse Keybinds 0 Fullscreen 1 Font 24/Smallcaps Map View 50x40 Zoom Use 0% Tactical HUD 1 Map Filters NONE Filters NONE Steam 1 RUN: 36619e9f-6397-4ce9-a54c-54e95ae9a145